[Event "Stay Safe Play From Home 356"]
[Site "Emanuel Lasker Arena"]
[Date "2020.08.04"]
[Round "3"]
[White "Fischer_11"]
[Black "Ao017545"]
[Result "1-0"]
[WhiteElo "2114"]
[BlackElo "1673"]
[Annotator "NA RC"]
[PlyCount "31"]
[EventDate "2020.08.04"]
[EventType "swiss (blitz)"]
[TimeControl "60"]

1. e4 {[%emt 0:00:02]} e5 {[%emt 0:00:01]} 2. Nc3 {[%emt 0:00:01]} Nf6 {[%emt 0:00:02]} 3. Bc4 {[%emt 0:00:00]} Bc5 {[%emt 0:00:01]} 4. d3 {[%emt 0:00:01]} d6 {[%emt 0:00:03]} 5. f4 {[%emt 0:00:01]} Ng4 {[%emt 0:00:02]} 6. f5 {[%emt 0:00:02]} Nf2 {[%emt 0:00:02]} 7. Qh5 {[%emt 0:00:01]} g6 {[%emt 0:00:04]} 8. Qh6 {[%emt 0:00:04]} Qe7 {[%emt 0:00:05]} 9. Qg7 {[%emt 0:00:09]} Qf8 {[%emt 0:00:02]} 10. Qf6 {[%emt 0:00:05]} Nxh1 {[%emt 0:00:04]} 11. Nd5 {[%emt 0:00:03]} Bb6 {[%emt 0:00:05]} 12. Qg5 {[%emt 0:00:05]} c6 {[%emt 0:00:07]} 13. Nf6+ {[%emt 0:00:01]} Ke7 {[%emt 0:00:11]} 14. Nxh7+ {[%emt 0:00:02]} Ke8 {[%emt 0:00:05]} 15. Nf6+ {[%emt 0:00:00]} Ke7 {[%emt 0:00:04]} 16. Nf3 {[%emt 0:00:01] Zaman (Lag: Av=0.59s, max=0.8s)} 1-0